bitfinex/quotes_ETHUSD_20250110
["timestamp","ask_amount","ask_price","bid_price","bid_amount"]
[1736542745670,0.7695,3269.0,3268.3,3.28569]
[1736542745883,0.7695,3269.0,3268.4,3.05958]
[1736542746407,0.7695,3269.0,3268.3,0.226]
[1736542746603,0.789,3268.7,3267.8,3.06009]
[1736542746825,0.789,3268.7,3267.9,3.47485606]
[1736542747369,3.8814,3268.4,3266.8,6.92348]
[1736542747668,0.8218,3268.1,3266.9,3.28696]
[1736542747972,3.05961,3268.4,3267.4,1.42743768]
[1736542747973,0.7805,3268.4,3267.4,1.42743768]
[1736542748166,0.7805,3268.4,3267.6,0.55]
[1736542748480,0.7805,3268.1,3267.3,3.06059]
[1736542749306,0.7805,3268.1,3267.3,3.39230933]
[1736542749468,0.7805,3268.1,3267.5,0.55]
[1736542749674,0.7805,3268.1,3267.6,3.06034]
[1736542750285,0.7805,3268.1,3267.4,3.0605]
[1736542751098,0.7805,3268.1,3267.3,0.62086428]
[1736542751285,0.7805,3268.1,3267.2,3.0607]
[1736542751486,0.7624,3267.8,3266.8,0.226]
[1736542751811,0.7624,3267.8,3267.0,3.06089]
[1736542751999,0.7624,3267.8,3267.1,3.06078]
[1736542752937,0.7624,3267.8,3267.0,0.03060532]
[1736542753206,0.7624,3267.8,3267.2,3.06063]
[1736542753368,0.7624,3267.8,3267.3,3.06062]
[1736542753570,0.7624,3268.8,3267.5,3.06044]
[1736542753771,0.7624,3268.7,3267.7,0.55]
[1736542753996,5.38,3269.1,3267.2,3.06064]
[1736542753997,0.7624,3268.4,3267.2,3.06064]
[1736542754318,0.7624,3268.4,3267.1,0.7978]
[1736542754509,0.7624,3268.4,3267.4,3.06052]
[1736542755015,0.7624,3268.4,3267.3,1.16724861]
[1736542755186,0.7624,3268.4,3267.7,3.06018]
[1736542755388,0.8046,3268.4,3267.5,3.06035]
[1736542755690,0.8046,3268.1,3267.5,3.06035]
[1736542756275,0.8046,3268.1,3267.1,3.06079]
[1736542756476,0.8064,3267.8,3267.1,3.06079]
[1736542757011,0.8064,3267.8,3267.0,0.26160552]
[1736542757173,0.8064,3267.8,3267.0,3.29185]
[1736542757381,0.8064,3267.8,3267.3,3.06061]
[1736542757710,0.8064,3267.8,3267.4,3.06051]
[1736542758011,0.8064,3267.8,3267.5,3.06043]
[1736542758388,0.8064,3267.8,3267.2,3.06067]
[1736542759387,0.8064,3267.8,3267.0,3.2919]
[1736542759709,0.8064,3267.8,3267.0,0.231]
[1736542759912,0.8064,3267.8,3267.1,3.06079]
[1736542760111,0.8064,3267.8,3267.3,3.06059]
[1736542760538,0.8064,3267.8,3267.1,3.06078]
[1736542760676,0.8064,3267.8,3267.0,0.231]
[1736542761014,0.8035,3267.8,3266.9,3.06097]
[1736542761174,3.06025,3267.8,3266.7,3.06117]
[1736542761374,2.56626616,3267.6,3266.6,0.01459121]
[1736542761615,3.85358,3267.5,3266.6,0.01459121]
[1736542761918,0.7931,3267.4,3266.6,0.01459121]
[1736542762393,0.7931,3267.4,3266.6,3.07584121]
[1736542762592,0.7931,3267.4,3266.6,0.01459121]
[1736542762798,0.7931,3267.4,3266.6,3.07587121]
[1736542763001,0.7931,3267.4,3266.6,0.01459121]
[1736542763215,2.56626616,3267.2,3266.6,0.01459121]
[1736542763393,3.83149,3266.7,3266.6,0.01459121]
[1736542763721,0.7703,3266.7,3266.6,0.01459121]
[1736542764078,0.7628,3266.7,3266.6,0.01459121]
[1736542764278,1.04305863,3266.7,3266.6,0.01459121]
[1736542764504,0.28025863,3266.7,3266.6,3.07587121]
[1736542764716,0.28025863,3266.7,3266.6,3.38345833]
[1736542765389,0.7896,3267.3,3266.6,3.38345833]
[1736542765589,0.7896,3267.3,3266.7,0.03060844]
[1736542765789,0.7896,3267.3,3266.9,3.06091]
[1736542766294,0.7896,3267.3,3266.6,0.32217833]
[1736542766494,0.7896,3267.3,3266.6,0.01459121]
[1736542766701,0.7896,3267.3,3266.8,3.06106]
[1736542767225,0.7896,3267.3,3266.6,3.10639965]
[1736542767427,0.7896,3267.3,3266.6,3.07579121]
[1736542767793,0.7896,3267.3,3266.6,0.01459121]
[1736542768531,0.811,3267.1,3266.6,0.01459121]
[1736542768893,0.28083243,3267.0,3266.6,0.01459121]
[1736542769446,2.56626616,3266.9,3266.6,0.01459121]
[1736542769589,0.811,3266.8,3266.6,0.01459121]
[1736542770226,0.28083243,3266.7,3266.6,0.01459121]
[1736542771322,0.811,3266.8,3266.6,0.01459121]
[1736542771818,0.7579,3267.5,3266.6,0.01459121]
[1736542772023,0.7579,3267.5,3266.6,3.41709773]
[1736542772241,0.7579,3267.5,3266.8,3.06107]
[1736542773148,0.28144508,3267.4,3266.8,3.06107]
[1736542774225,0.7636,3267.3,3266.6,0.01459121]
[1736542774424,3.0,3267.2,3266.6,0.01459121]
[1736542774624,0.7636,3267.1,3266.6,0.01459121]
[1736542774830,0.7872,3267.0,3266.6,0.01459121]
[1736542775162,3.84811,3267.0,3266.6,0.01459121]
[1736542775315,6.84839,3266.7,3266.6,0.01459121]
[1736542775515,9.98374998,3266.7,3266.6,0.01459121]
[1736542776220,10.26519506,3266.7,3266.6,0.01459121]
[1736542776419,10.81519506,3266.7,3266.6,0.01459121]
[1736542777366,10.81519506,3266.7,3264.7,3.06304]
[1736542777367,3.06212,3265.8,3264.7,3.29398]
[1736542777522,0.826,3265.7,3264.8,3.06294]
[1736542777854,0.826,3265.7,3264.9,3.06285]
[1736542778014,0.826,3265.7,3264.9,3.49789987]
[1736542778216,0.826,3265.7,3264.7,1.58182181]
[1736542778419,0.826,3265.0,3264.7,0.60042181]
[1736542778734,0.826,3266.3,3264.9,0.0075]
[1736542779138,3.826,3266.3,3265.1,3.06267]
[1736542779455,3.826,3266.3,3264.9,0.0075]
[1736542779456,0.8204,3265.7,3264.8,0.231]
[1736542779668,3.06223,3265.6,3264.6,0.7504]
[1736542779826,0.8204,3265.5,3264.5,3.06316]
[1736542780223,3.0,3265.1,3264.3,0.7957]
[1736542780537,3.0,3265.1,3264.2,3.06352]
[1736542780538,0.8204,3265.0,3264.2,3.09415155]
[1736542780742,0.8204,3265.0,3264.3,3.06335]
[1736542781056,0.8204,3265.0,3264.2,0.44894995]
[1736542781237,0.8204,3265.0,3264.0,0.7957]
[1736542781442,0.8204,3265.0,3264.0,3.85939]
[1736542781853,0.28144508,3264.9,3264.0,0.7957]
[1736542782031,0.28144508,3264.9,3264.1,3.06362]
[1736542782362,0.28144508,3264.9,3264.2,3.06352]
[1736542782956,0.28144508,3264.8,3264.2,3.06352]
[1736542783259,0.28144508,3264.8,3264.3,3.06344]
[1736542783459,0.28144508,3264.8,3264.1,3.06354]
[1736542783653,0.7636,3264.7,3263.8,3.06387]
[1736542784002,3.0,3263.9,3263.0,0.802]
[1736542784267,0.8026,3264.0,3263.0,0.802]
[1736542784490,0.8026,3264.3,3263.2,3.06445]
[1736542784765,0.8026,3264.3,3263.3,3.40452026]
[1736542785076,0.8026,3264.3,3263.3,0.34015026]
[1736542785368,1.09194508,3264.6,3263.4,0.7698]
[1736542785663,0.8105,3264.6,3263.5,0.03063552]
[1736542785896,0.8105,3264.6,3263.6,0.233]
[1736542786188,0.8105,3264.6,3263.7,3.064]
[1736542786486,0.8105,3264.6,3263.7,0.33045]
[1736542786634,0.8105,3264.6,3263.7,0.93028192]
[1736542786830,0.8105,3264.6,3263.8,0.03063393]
[1736542787073,0.28014126,3264.5,3263.7,3.99421192]
[1736542787229,0.28014126,3264.5,3263.7,0.93028192]
[1736542787434,0.28014126,3264.5,3263.7,3.064]
[1736542787665,0.28014126,3264.5,3263.6,0.233]
[1736542787829,0.8105,3264.6,3263.7,0.03063515]
[1736542788228,0.8105,3264.6,3263.4,0.7698]
[1736542788443,0.8105,3264.6,3263.4,1.39123737]
[1736542788669,0.8105,3264.6,3263.5,0.03063516]
[1736542788858,0.8105,3264.6,3263.4,1.0028]
[1736542789063,0.7906,3264.2,3262.9,3.29772]
[1736542789236,6.96699998,3264.2,3263.0,3.61088374]
[1736542789438,0.7906,3264.1,3263.0,3.0]
[1736542790082,0.7906,3264.1,3263.1,0.03064194]
[1736542790386,0.7906,3264.1,3263.1,0.64017813]
[1736542790970,0.27984183,3264.0,3263.1,0.64017813]
[1736542791765,0.27984183,3264.0,3263.1,0.03064194]
[1736542791959,0.27984183,3264.0,3262.9,3.09537194]
[1736542792167,1.10784183,3263.9,3262.5,0.7956]
[1736542792389,0.828,3263.8,3262.6,0.61487203]
[1736542792597,3.828,3263.8,3262.6,4.15072223]
[1736542792767,3.828,3263.8,3262.7,3.06491]
[1736542793096,0.828,3263.8,3262.9,0.0075]
[1736542793261,0.27984183,3263.7,3263.1,0.7956]
[1736542793469,0.27984183,3263.7,3263.0,3.06458]
[1736542793793,0.27984183,3263.7,3263.1,3.09520213]
[1736542794714,0.828,3263.8,3263.1,3.09520213]
[1736542795264,0.828,3263.8,3263.1,0.34016234]
[1736542795470,0.828,3263.8,3262.5,0.799]
[1736542795471,3.0,3263.8,3262.5,0.799]
[1736542795670,0.8171,3263.6,3262.4,0.61161553]
[1736542795916,0.8246,3263.4,3262.2,0.233]
[1736542796088,0.8171,3263.3,3262.2,0.233]
[1736542796270,3.88148,3263.3,3262.2,0.233]
[1736542796466,3.88148,3263.3,3262.2,0.8417925]
[1736542796664,0.8171,3263.3,3262.3,3.09595116]
[1736542796866,0.7661,3263.1,3261.9,3.29868]
[1736542797188,0.7661,3263.1,3261.9,3.32933182]
[1736542797189,0.7661,3263.0,3261.9,3.32933182]
[1736542797368,1.04567646,3263.0,3261.9,0.26365182]
[1736542797568,1.04567646,3263.0,3262.3,3.06529]
[1736542797970,1.04567646,3263.0,3262.1,0.03064937]
[1736542798214,0.27957646,3263.0,3262.5,0.7811]
[1736542798369,0.27957646,3263.0,3262.9,3.06475]
[1736542798829,0.27957646,3263.0,3262.9,3.604225]
[1736542799038,0.27957646,3263.0,3262.9,3.64236659]
[1736542799244,0.0075,3264.6,3262.9,3.64236659]
[1736542799245,0.8142,3264.7,3263.2,0.0075]
[1736542799403,0.8142,3264.7,3263.8,3.06389]
[1736542799604,0.8142,3264.7,3263.8,0.233]
[1736542800032,3.11285998,3264.4,3263.2,0.7685]
[1736542800203,0.8142,3264.3,3263.2,0.7685]
[1736542800405,0.8142,3265.9,3265.1,0.7685]
[1736542800740,3.06119,3266.7,3265.2,0.26362381]
[1736542800741,1.66128569,3266.2,3265.2,0.26362381]
[1736542800947,0.8142,3266.2,3265.2,0.67310119]
[1736542801119,0.8142,3266.2,3265.2,3.32613381]
[1736542801315,0.8142,3266.2,3265.2,0.26362381]
[1736542801541,0.8142,3266.2,3265.4,0.60112676]
[1736542801860,0.7613,3267.6,3266.3,3.06148]
[1736542802163,0.7613,3267.3,3266.2,3.29465]
[1736542802570,3.82198,3267.3,3266.2,0.233]
[1736542802843,0.799,3267.1,3266.2,0.233]
[1736542803614,0.799,3267.1,3265.9,0.03061463]
[1736542803817,0.799,3267.1,3265.4,1.40532676]
[1736542803818,0.8232,3266.8,3265.4,1.40532676]
[1736542804061,0.8232,3266.6,3265.6,3.06221]
[1736542804262,3.88452,3266.6,3265.4,1.40532676]
[1736542804426,3.0,3266.5,3265.4,3.89649676]
[1736542804626,0.8232,3266.4,3265.4,0.233]
[1736542804926,0.8232,3266.4,3265.6,3.06221]
[1736542805462,0.8232,3266.4,3265.4,3.32595025]
[1736542805761,0.8232,3266.4,3265.7,3.0621]
[1736542806123,0.8232,3266.4,3265.8,3.06202]
[1736542806373,0.8232,3266.4,3265.5,0.03061903]
[1736542806374,0.8232,3266.4,3265.6,3.2952]
[1736542806548,0.8232,3266.4,3265.6,0.233]
[1736542806866,0.8232,3266.4,3265.3,3.06249]
[1736542807048,0.7741,3266.0,3264.9,3.06285]
[1736542807227,0.7741,3266.0,3264.9,3.09347544]
[1736542808066,0.7741,3266.0,3264.5,3.06319]
[1736542808067,0.781,3265.8,3264.3,0.7918]
[1736542808289,3.0,3265.5,3264.6,0.60543257]
[1736542808563,3.781,3265.5,3264.5,3.06323]
[1736542808768,0.781,3265.5,3264.5,3.06323]
[1736542809425,0.781,3265.5,3264.4,0.03062908]
[1736542809625,0.781,3265.5,3264.5,0.0075]
[1736542809967,3.061,3266.9,3265.1,0.7918]
[1736542810172,3.0614,3266.5,3265.2,3.06251]
[1736542810465,0.781,3266.4,3265.2,3.09313166]
[1736542810764,0.781,3266.0,3265.0,3.0627]
[1736542811062,3.84286,3266.0,3264.8,3.85474]
[1736542811270,3.84286,3266.0,3264.8,0.7918]
[1736542811439,3.84286,3266.0,3264.9,3.06283]
[1736542812441,0.781,3266.0,3265.0,3.06277]
[1736542813150,0.781,3266.0,3265.0,3.0933939]
[1736542813334,0.781,3266.0,3265.0,0.0306239]
[1736542813568,0.781,3266.0,3265.3,3.06247]
[1736542813933,0.781,3266.0,3265.1,3.06266]
[1736542814198,0.781,3266.0,3265.2,0.03062202]
[1736542814403,0.781,3266.0,3265.4,3.06234]
[1736542814559,0.8318,3266.5,3265.5,0.0075]
[1736542814764,0.8318,3266.5,3265.9,3.06187]
[1736542815308,3.89322,3266.5,3265.4,0.245]
[1736542815596,3.89322,3266.5,3265.4,3.30738]
[1736542815597,0.8318,3266.4,3265.4,3.30738]
[1736542816028,0.8318,3266.4,3265.5,0.03061948]
[1736542816776,0.7945,3267.1,3265.7,0.8315]
[1736542816974,0.7945,3267.1,3265.8,0.03061476]
[1736542817178,0.7945,3267.1,3265.9,0.0075]
[1736542817505,0.7945,3267.1,3266.0,0.03061176]
[1736542817669,0.7945,3267.1,3266.4,3.06147]
[1736542818976,0.7945,3267.1,3266.2,3.06165]
[1736542819172,0.7945,3267.1,3265.7,3.8315]
[1736542819388,3.06102,3266.9,3265.8,3.06201]
[1736542819707,3.06102,3266.9,3265.3,3.06243]
[1736542819708,0.7657,3266.4,3265.0,0.245]
[1736542819866,3.0,3266.3,3265.3,3.0625]
[1736542820066,3.0,3266.3,3265.1,3.07016]
[1736542820266,3.0,3266.3,3265.2,3.06255]
[1736542820989,3.0,3266.3,3265.3,3.06246]
[1736542821717,3.82737,3266.2,3265.1,3.06265]
[1736542821910,3.08374,3266.7,3265.0,0.245]
[1736542821911,0.7657,3266.1,3265.0,0.245]
[1736542822213,0.7657,3266.0,3265.0,3.30778]
[1736542822714,3.0,3266.4,3264.6,0.7659]
[1736542822715,0.7657,3265.9,3264.6,0.7659]
[1736542822888,0.7657,3265.6,3264.6,3.06313]
[1736542823090,3.82793,3265.6,3264.5,3.06324]
[1736542823416,3.06241,3265.4,3264.4,0.245]
[1736542823613,0.7657,3265.5,3264.4,3.30833]
[1736542824474,0.7657,3265.5,3264.4,0.245]
[1736542824674,0.7657,3265.5,3264.5,3.06324]
[1736542826878,0.8052,3265.4,3264.4,0.245]
[1736542827078,0.8052,3265.4,3264.4,3.30833]
[1736542827275,0.8052,3266.3,3265.1,3.06269]
[1736542827532,0.28110749,3265.3,3265.2,3.0932107]
[1736542827890,0.28110749,3265.3,3265.2,6.07009]
[1736542828093,0.28110749,3265.3,3265.2,7.533368]
[1736542828329,7.49e-06,3265.3,3265.2,8.345668]
[1736542828537,7.49e-06,3265.3,3265.2,17.295668]
[1736542828989,0.8138,3266.7,3266.1,3.06169]
[1736542835593,0.8138,3266.7,3265.9,3.06186]
[1736542836233,0.8138,3266.7,3266.0,3.06182]
[1736542837496,0.8138,3266.7,3265.8,3.062]
[1736542837835,0.8138,3266.7,3266.1,3.06171]
[1736542838701,0.8138,3266.7,3265.9,0.03061579]
[1736542838702,0.8138,3266.7,3265.9,3.06192]
[1736542840990,0.28253998,3266.6,3265.9,3.06192]
[1736542841751,0.28253998,3266.6,3265.8,0.77852481]
[1736542842054,0.28253998,3266.6,3265.3,0.0075]
[1736542842055,0.8137,3266.5,3265.5,3.06227]
[1736542842202,0.8137,3266.5,3265.6,3.0622]
[1736542842401,1.09623998,3266.5,3265.6,3.0622]
[1736542842797,4.15762998,3266.5,3265.5,0.408077]
[1736542843036,0.8137,3266.3,3265.4,3.30737]
[1736542843243,0.8137,3266.2,3265.0,1.0195]
[1736542843437,0.8137,3266.2,3265.3,3.06241]
[1736542843857,0.28253998,3266.1,3265.3,3.06241]
[1736542844273,3.92793851,3266.0,3265.1,0.61960983]
[1736542844558,3.92793851,3266.0,3264.7,0.7735]
[1736542844559,3.87566,3265.9,3265.0,3.06275]
[1736542845076,0.28253998,3265.8,3265.0,3.369025]
[1736542845239,0.8137,3265.7,3265.0,3.06275]
[1736542845439,0.7137,3265.7,3265.0,3.06275]
[1736542846175,0.7137,3265.7,3264.6,0.60992172]
[1736542846365,0.7137,3265.7,3264.8,3.06293]
[1736542846366,0.28253998,3265.6,3264.8,3.06293]
[1736542846980,3.34476998,3265.6,3264.6,3.06311]
[1736542847998,0.28253998,3265.5,3264.6,3.06311]
[1736542848509,0.7774,3265.4,3264.6,3.06311]
[1736542849600,0.28253998,3265.3,3264.6,3.06311]
[1736542850328,0.28253998,3265.3,3264.4,4.6962673]
[1736542850461,0.28253998,3265.3,3264.5,3.06324]
[1736542850661,3.83982,3265.4,3264.4,1.6329473]
[1736542850662,0.28253998,3265.2,3264.6,3.06314]
[1736542851658,0.28253998,3265.1,3264.6,3.06314]
[1736542852299,0.7782,3265.0,3264.6,3.06314]
[1736542852500,0.7782,3265.0,3264.4,0.8701473]
[1736542852686,0.7782,3265.0,3264.5,3.0632]
[1736542852865,0.7782,3265.0,3264.6,3.06314]
[1736542853496,0.7782,3265.0,3264.5,0.39333473]
[1736542853722,0.7782,3265.0,3264.5,3.45653473]
[1736542855468,0.7782,3265.0,3263.8,6.18342152]
[1736542855674,3.841,3265.0,3264.0,3.06367]
[1736542855869,0.7782,3265.0,3264.0,3.06367]
[1736542856213,3.7782,3265.0,3264.1,3.06362]
[1736542856414,0.7782,3265.0,3264.2,0.64831013]
[1736542856725,0.7782,3265.0,3264.3,3.06336]
[1736542857026,0.28192094,3264.9,3264.3,0.37116701]
[1736542857175,0.28192094,3264.9,3264.4,3.06334]
[1736542857575,0.28192094,3264.9,3264.2,3.68115771]
[1736542858111,0.7782,3265.0,3264.2,3.68115771]
[1736542858912,3.84099,3265.0,3264.2,3.68115771]
[1736542859722,0.2818879,3264.9,3264.3,3.0634]
[1736542860023,0.2818879,3264.9,3264.3,3.4621387]
[1736542860801,0.7782,3265.0,3264.3,3.4621387]
[1736542861522,0.7782,3265.0,3264.5,3.06319]
[1736542861823,0.7782,3265.0,3264.6,3.06309]
[1736542862221,0.7782,3265.0,3264.4,3.0633]
[1736542862512,0.7782,3265.0,3264.5,0.42603078]
[1736542863422,0.7782,3265.0,3264.5,3.06319]
[1736542863622,0.7782,3265.0,3264.3,4.26039777]
[1736542863825,0.7782,3265.0,3264.3,3.43149777]
[1736542864042,0.7782,3265.0,3264.3,0.36810777]
[1736542864330,0.8073,3264.8,3264.0,3.0637]
[1736542866265,0.8073,3264.8,3263.8,3.36560152]
[1736542866432,0.8073,3264.8,3264.0,3.06365]
[1736542866924,3.06333,3264.5,3263.8,3.11960152]
[1736542867245,0.8073,3264.3,3263.8,3.11960152]
[1736542867406,3.06372,3264.0,3263.8,3.11960152]
[1736542867727,3.87112,3263.9,3263.3,0.60023493]
[1736542867910,3.87112,3263.9,3263.1,0.246]
[1736542868315,3.87112,3263.9,3263.2,0.55]
[1736542868490,0.28232997,3263.8,3263.2,0.55]
[1736542868890,0.28232997,3263.8,3262.9,0.306475]
[1736542868891,0.8108,3263.7,3262.9,0.306475]
[1736542869089,0.8108,3263.5,3262.7,3.31092]
[1736542869317,0.8108,3263.5,3262.8,0.55]
[1736542869517,0.8108,3263.5,3263.0,0.55]
[1736542869904,0.8108,3263.5,3263.2,0.55]
[1736542870336,0.28232997,3263.6,3263.3,0.03064232]
[1736542870642,0.8108,3264.0,3263.4,3.06427]
[1736542870804,0.8108,3264.0,3263.4,3.37376123]
[1736542871194,0.8108,3264.0,3263.4,0.30949123]
[1736542871535,0.8108,3264.3,3263.7,3.06398]
[1736542871838,0.8108,3264.3,3263.3,3.34098232]
[1736542871839,0.8108,3264.3,3263.9,0.55]
[1736542872197,0.8108,3264.3,3263.7,0.55]
[1736542872397,0.8108,3264.3,3263.7,3.61399]
[1736542873837,0.8108,3264.3,3263.9,0.55]
[1736542874242,0.28264546,3264.2,3263.2,0.7737]
[1736542874397,0.7837,3264.0,3263.0,0.245]
[1736542874593,0.7837,3263.8,3263.0,0.245]
[1736542874799,0.7837,3263.8,3263.0,3.30966]
[1736542875222,0.28264546,3263.7,3263.0,3.30966]
[1736542875601,0.28264546,3263.7,3263.1,3.06455]
[1736542875943,0.28264546,3263.7,3263.5,3.06418]
[1736542876437,0.28264546,3263.7,3263.6,0.82564119]
[1736542876644,0.28264546,3263.7,3263.6,3.89724119]
[1736542876800,0.28264546,3263.7,3263.6,3.8666]
[1736542877802,0.797,3264.3,3264.0,3.06369]
[1736542878003,0.797,3264.3,3264.1,0.306369]
[1736542879239,0.797,3264.3,3263.7,3.06393]
[1736542879401,0.797,3264.3,3263.0,13.08305]
[1736542879610,0.8252,3264.2,3263.4,3.06426]
[1736542880640,0.28293003,3264.1,3263.4,3.06426]
[1736542880839,0.28293003,3264.1,3263.5,3.06419]
[1736542881142,0.28293003,3264.1,3263.2,0.03063999]
[1736542881143,0.28293003,3264.1,3263.6,3.06409]
[1736542881714,0.28293003,3264.1,3263.4,0.03063848]
[1736542881919,0.28293003,3264.1,3263.7,3.06399]
[1736542882304,0.28293003,3264.0,3263.7,0.306399]
[1736542882643,0.28293003,3264.0,3263.8,3.06391]
[1736542884024,0.8252,3264.2,3263.8,3.06391]
[1736542884904,0.28298068,3264.1,3263.8,3.06391]
[1736542885444,0.28298068,3264.1,3263.4,3.06423]
[1736542885445,6.8e-07,3264.1,3264.0,6.85632]
[1736542885617,0.7501,3265.6,3264.3,0.0075]
[1736542885818,0.7501,3265.6,3264.8,0.7851]
[1736542886032,0.7501,3265.6,3264.8,3.848]
[1736542886234,0.7501,3265.6,3265.1,3.06264]
[1736542886418,0.7501,3265.6,3264.9,0.03062608]
[1736542886619,0.7501,3265.6,3265.2,3.06253]
[1736542889478,0.7501,3265.6,3265.0,3.06275]
[1736542889646,0.7501,3265.6,3264.9,0.58062608]
[1736542890787,0.7501,3265.6,3265.1,3.06266]
[1736542892589,0.7501,3265.6,3264.6,0.245]
[1736542892773,0.8307,3265.5,3264.9,3.06287]
[1736542893473,0.8307,3265.5,3264.7,3.06302]
[1736542894441,0.8307,3265.5,3264.8,3.06296]
[1736542894784,0.8307,3265.5,3264.5,0.58062872]
[1736542894981,0.8307,3265.5,3264.5,3.64383872]
[1736542895190,0.8307,3265.5,3264.8,3.06288]
[1736542896060,0.8307,3265.5,3264.8,3.06292]
[1736542896697,0.78417435,3265.5,3264.8,3.06292]
[1736542896896,0.78417435,3265.5,3264.5,0.58062872]
[1736542897096,0.78417435,3265.5,3264.9,3.0628]
[1736542897614,0.78417435,3265.5,3265.0,3.06277]
[1736542898906,0.78417435,3265.5,3264.4,3.91824567]
[1736542899110,0.78417435,3265.5,3264.4,0.85490567]
[1736542899408,0.78417435,3265.5,3264.8,3.06296]
[1736542900385,0.78417435,3265.5,3264.5,0.55]
[1736542900386,0.78417435,3265.5,3264.6,0.03062832]
[1736542900578,0.78417435,3265.5,3264.8,3.06295]
[1736542901514,0.78417435,3265.5,3264.5,0.55]
[1736542901515,0.78417435,3265.5,3265.0,3.0627]
[1736542901711,0.78417435,3265.5,3265.1,3.06266]
[1736542902219,0.7578,3266.1,3265.2,0.03062472]
[1736542902379,0.7578,3266.1,3265.7,3.0621]
[1736542902575,0.7578,3266.1,3265.5,3.06227]
[1736542904650,0.7578,3266.1,3265.3,0.58062067]
[1736542905148,3.0,3266.5,3265.3,0.58062067]
[1736542905149,0.7601,3266.5,3265.6,3.06222]
[1736542905453,0.7601,3266.5,3266.3,3.06149]
[1736542905643,0.7601,3266.8,3266.3,3.06149]
[1736542906269,0.7601,3266.8,3266.4,3.06144]
[1736542906555,0.7601,3266.8,3266.5,3.06136]
[1736542906854,0.7601,3266.8,3266.2,0.55]
[1736542907065,0.7601,3266.8,3266.3,3.06151]
[1736542907236,0.7601,3266.8,3266.1,1.15407642]
[1736542908130,0.7601,3266.8,3266.1,4.21580642]
[1736542908972,0.7601,3266.8,3266.1,1.15407642]
[1736542909265,3.06119,3266.7,3265.8,0.24]
[1736542909469,3.81579,3266.7,3265.8,0.24]
[1736542909765,3.06133,3266.6,3265.8,0.24]
[1736542910067,0.7546,3266.0,3265.1,0.7796]
[1736542910367,0.7546,3266.0,3265.2,3.30257]
[1736542910527,0.7546,3266.0,3265.3,4.23923071]
[1736542910734,0.7546,3266.0,3265.4,0.03061974]
[1736542910932,0.7546,3266.0,3265.5,3.0623]
[1736542911866,0.7546,3266.0,3265.3,4.23922071]
[1736542916389,0.7546,3266.0,3265.3,1.17676071]
[1736542916580,0.015,3266.7,3264.7,0.8234]
[1736542916581,0.7844,3265.7,3264.7,0.8234]
[1736542916883,3.84655,3265.7,3264.8,3.06296]
[1736542917378,3.84655,3265.7,3264.9,0.59795122]
[1736542917782,0.7844,3265.7,3264.9,0.59795122]
[1736542917966,0.8003,3265.5,3264.7,0.24]
[1736542918165,0.8003,3265.2,3264.7,0.24]
[1736542919376,0.8003,3265.2,3264.1,0.7769]
[1736542919540,3.06276,3265.1,3264.1,3.84045]
[1736542919964,0.8318,3264.9,3264.1,0.030631]
[1736542920286,3.8947,3264.9,3264.1,0.030631]
[1736542920460,3.8947,3264.9,3264.1,0.60714952]
[1736542920862,3.8947,3264.9,3264.0,3.30371]
[1736542921056,3.06297,3264.8,3263.9,0.55]
[1736542921256,0.8188,3264.9,3263.7,0.61387851]
[1736542921451,0.8188,3264.6,3263.7,3.67787851]
[1736542922246,0.8188,3264.6,3263.8,3.6139]
[1736542922476,0.8188,3264.6,3263.9,3.06378]
[1736542922708,0.8188,3264.6,3263.9,3.09441448]
[1736542922876,0.8188,3264.6,3264.1,3.06355]
[1736542923078,0.8188,3265.2,3264.1,0.03063287]
[1736542923294,0.8188,3265.2,3264.5,3.06317]
[1736542923951,0.8188,3265.2,3265.0,3.06274]
[1736542924216,0.7762,3265.7,3265.0,0.55]
[1736542924413,0.7762,3265.7,3265.1,0.03062293]
[1736542924570,0.7762,3265.7,3264.7,3.06303]
[1736542924904,3.83835,3265.7,3264.7,3.06303]
[1736542925109,3.83835,3265.7,3264.8,0.03062638]
[1736542925305,3.83835,3265.7,3264.7,3.06303]
[1736542925512,0.7762,3265.7,3264.8,3.09355638]
[1736542927507,3.83835,3265.7,3264.8,0.03062638]
[1736542927835,0.7762,3265.7,3264.7,0.55]
[1736542928330,3.06259,3265.3,3264.1,3.06354]
[1736542928471,0.7857,3265.4,3264.3,0.59897757]
[1736542928809,0.7857,3265.4,3264.9,0.55]
[1736542928974,0.7857,3265.4,3265.0,0.03062479]
[1736542929407,0.7857,3265.4,3265.1,0.30934748]
[1736542930215,0.7857,3265.7,3265.1,0.30934748]
[1736542930376,0.7857,3265.7,3265.2,0.58062478]
[1736542930737,0.7857,3265.7,3265.2,3.61259]
[1736542932000,0.7857,3265.7,3265.0,3.61275]
[1736542932201,0.7857,3265.7,3265.0,4.41841715]
[1736542933021,0.7857,3265.7,3264.9,0.60836151]
[1736542933198,3.8479,3265.7,3264.9,0.60836151]
[1736542934115,0.7857,3265.7,3264.9,0.60836151]
[1736542935380,0.7857,3265.7,3265.0,0.5806248]
[1736542935583,0.7857,3265.7,3265.2,0.55]
[1736542935882,0.7857,3265.7,3265.3,0.03062171]
[1736542936526,0.7857,3265.7,3265.2,3.61259]
[1736542936726,0.7857,3265.7,3265.0,3.61276]
[1736542936925,0.7857,3265.7,3265.0,4.11655215]
[1736542937128,0.7857,3265.7,3265.2,0.55]
[1736542938278,0.7857,3265.7,3265.1,0.55]
[1736542938642,0.7857,3265.7,3265.0,3.61276]
[1736542939173,0.7857,3265.7,3265.2,0.55]
[1736542939863,0.7857,3265.7,3265.0,0.55]
[1736542940026,0.7857,3265.7,3265.0,3.81026615]
[1736542940361,0.7857,3265.7,3265.2,3.61256]